bitfinex/quotes_BTCUSD_20251029
["timestamp","ask_amount","ask_price","bid_price","bid_amount"]
[1761707969595,0.00248605,112630.0,112620.0,0.6880601]
[1761707970539,0.00248605,112630.0,112620.0,0.31322124]
[1761707970779,0.00248605,112630.0,112620.0,0.60580721]
[1761707971563,0.00048605,112630.0,112620.0,0.63247659]
[1761707972097,0.00048605,112630.0,112620.0,0.63447659]
[1761707973589,0.00048605,112630.0,112620.0,0.25963773]
[1761707973803,0.00048605,112630.0,112620.0,0.63447659]
[1761707974312,0.00048605,112630.0,112620.0,0.71692931]
[1761707974518,0.00048605,112630.0,112620.0,0.89030832]
[1761707974744,0.00048605,112630.0,112620.0,0.8078556]
[1761707975407,0.00048605,112630.0,112620.0,0.80783406]
[1761707981537,0.00048605,112630.0,112620.0,1.21883366]
[1761707982317,0.00048605,112630.0,112620.0,0.84401634]
[1761707983590,0.00048605,112630.0,112620.0,0.46919902]
[1761707983797,0.00048605,112630.0,112620.0,0.84401634]
[1761707984638,0.00048605,112630.0,112620.0,0.93383535]
[1761707986625,0.00048605,112630.0,112620.0,0.34945674]
[1761707987054,0.00048605,112630.0,112620.0,0.43301674]
[1761708000694,0.56237595,112630.0,112620.0,0.23467773]
[1761708000918,0.56237595,112630.0,112620.0,0.05708938]
[1761708001339,0.59460451,112630.0,112620.0,0.002]
[1761708001546,0.67421499,112630.0,112620.0,0.002]
[1761708001762,0.58985451,112630.0,112620.0,0.002]
[1761708001980,0.58985451,112630.0,112620.0,0.01778]
[1761708002192,0.58985451,112630.0,112620.0,0.002]
[1761708002603,0.58985451,112630.0,112620.0,0.01778]
[1761708002812,0.58985451,112630.0,112620.0,0.01678]
[1761708003431,0.58985451,112630.0,112620.0,0.01578]
[1761708003843,0.58985451,112630.0,112620.0,0.01678]
[1761708004260,0.58985451,112630.0,112620.0,0.01578]
[1761708004694,0.58985451,112630.0,112620.0,0.01678]
[1761708004900,0.59085451,112630.0,112620.0,0.01678]
[1761708005960,0.59085451,112630.0,112620.0,0.05327]
[1761708006173,0.21128719,112630.0,112620.0,0.05327]
[1761708006391,0.19212548,112630.0,112620.0,0.05327]
[1761708009967,0.19687548,112630.0,112620.0,0.05327]
[1761708010417,0.5716928,112630.0,112620.0,0.05327]
[1761708010638,0.59085451,112630.0,112620.0,0.05327]
[1761708011345,0.20297034,112630.0,112620.0,0.23085835]
[1761708011564,0.18380863,112630.0,112620.0,0.05327]
[1761708011779,0.2104804,112630.0,112620.0,0.05327]
[1761708012437,0.21878256,112630.0,112620.0,0.05327]
[1761708012860,0.23794427,112630.0,112620.0,0.05327]
[1761708015169,0.24269427,112630.0,112620.0,0.02854]
[1761708015379,0.61751159,112630.0,112620.0,0.02854]
[1761708015979,0.59083982,112630.0,112620.0,0.02854]
[1761708018923,0.2160225,112630.0,112620.0,0.001]
[1761708019130,0.57167811,112630.0,112620.0,0.02775]
[1761708019341,0.59083982,112630.0,112620.0,0.02775]
[1761708022918,0.59083982,112630.0,112620.0,0.05145]
[1761708032570,0.59083982,112630.0,112620.0,0.22903835]
[1761708034102,0.59083982,112630.0,112620.0,0.05145]
[1761708035445,0.61491727,112630.0,112620.0,0.05145]
[1761708037240,0.2065225,112630.0,112620.0,0.24679718]
[1761708037464,0.2065225,112630.0,112620.0,0.22903835]
[1761708037681,0.5814745,112630.0,112620.0,0.22903835]
[1761708039195,0.02894992,112630.0,112620.0,0.22903835]
[1761708039424,0.00978821,112630.0,112620.0,0.68606296]
[1761708040093,0.05978821,112630.0,112620.0,0.68606296]
[1761708040316,0.05978821,112630.0,112620.0,0.60399035]
[1761708040527,0.05978821,112630.0,112620.0,0.22903835]
[1761708043210,0.05978821,112630.0,112620.0,0.60399035]
[1761708043430,0.00978821,112630.0,112620.0,0.60399035]
[1761708043643,0.00978821,112630.0,112620.0,0.68606296]
[1761708043857,0.00148605,112630.0,112620.0,0.31111096]
[1761708044502,0.00148605,112630.0,112620.0,0.22903835]
[1761708052386,0.00148605,112630.0,112620.0,0.25570782]
[1761708059228,0.00148605,112630.0,112620.0,0.22903835]
[1761708062325,0.55401063,112630.0,112620.0,0.22903835]
[1761708063032,0.17757258,112630.0,112620.0,0.22903835]
[1761708063242,0.55252458,112630.0,112620.0,0.22903835]
[1761708063454,0.374952,112630.0,112620.0,0.22903835]
[1761708063672,0.55252458,112630.0,112620.0,0.22903835]
[1761708063897,0.55252458,112630.0,112620.0,0.001]
[1761708063898,1.04952278,112630.0,112620.0,0.001]
[1761708064127,1.10427278,112630.0,112620.0,0.001]
[1761708064814,1.44427278,112630.0,112620.0,0.001]
[1761708069646,1.44426388,112630.0,112620.0,0.001]
[1761708070062,1.55802566,112630.0,112620.0,0.001]
[1761708070271,1.5746391,112630.0,112620.0,0.001]
[1761708070483,1.60131483,112630.0,112620.0,0.001]
[1761708071328,1.58470139,112630.0,112620.0,0.001]
[1761708071752,1.55802566,112630.0,112620.0,0.001]
[1761708071927,1.5746295,112630.0,112620.0,0.001]
[1761708072346,1.55802566,112630.0,112620.0,0.001]
[1761708072931,1.58994936,112630.0,112620.0,0.001]
[1761708074200,1.60654557,112630.0,112620.0,0.001]
[1761708074986,1.60653466,112630.0,112620.0,0.001]
[1761708075205,0.88330639,112630.0,112620.0,0.001]
[1761708075408,0.86671018,112630.0,112620.0,0.001]
[1761708077156,0.77689117,112630.0,112620.0,0.001]
[1761708078704,0.74021747,112630.0,112620.0,0.001]
[1761708078926,0.74496747,112630.0,112620.0,0.001]
[1761708081487,0.77689117,112630.0,112620.0,0.001]
[1761708082122,0.74496747,112630.0,112620.0,0.001]
[1761708085344,0.77689117,112630.0,112620.0,0.001]
[1761708086432,0.75021544,112630.0,112620.0,0.001]
[1761708086830,0.77689117,112630.0,112620.0,0.001]
[1761708087457,0.75021544,112630.0,112620.0,0.001]
[1761708087663,0.77689117,112630.0,112620.0,0.001]
[1761708088285,0.75021544,112630.0,112620.0,0.001]
[1761708089277,0.76681991,112630.0,112620.0,0.001]
[1761708091162,0.74546544,112630.0,112620.0,0.001]
[1761708091359,0.62372273,112630.0,112620.0,0.02864]
[1761708091567,0.59502996,112630.0,112620.0,0.058954]
[1761708092396,0.59502996,112630.0,112620.0,0.05247]
[1761708093005,0.60702996,112630.0,112620.0,0.05247]
[1761708093208,0.63097273,112630.0,112620.0,0.05247]
[1761708093705,0.60702996,112630.0,112620.0,0.05247]
[1761708096126,0.58786923,112630.0,112620.0,0.05247]
[1761708096332,0.60702059,112630.0,112620.0,0.05247]
[1761708097999,0.08944801,112630.0,112620.0,0.25430233]
[1761708098213,0.07029665,112630.0,112620.0,0.25430233]
[1761708098425,0.062,112630.0,112620.0,0.25430233]
[1761708099491,0.062,112630.0,112620.0,0.23005835]
[1761708099918,0.062,112630.0,112620.0,0.05247]
[1761708099919,0.23957258,112630.0,112620.0,0.05247]
[1761708100137,0.23957258,112630.0,112620.0,0.23005835]
[1761708101244,0.062,112630.0,112620.0,0.23005835]
[1761708104480,0.23957258,112630.0,112620.0,0.23005835]
[1761708117449,0.062,112630.0,112620.0,0.23005835]
[1761708120982,0.44490775,112640.0,112630.0,0.17757258]
[1761708121229,0.07830531,112640.0,112630.0,0.23082258]
[1761708121490,0.05915189,112640.0,112630.0,0.23082258]
[1761708122595,0.06115189,112640.0,112630.0,0.23082258]
[1761708124053,0.06115189,112640.0,112630.0,0.27290067]
[1761708124273,0.01031314,112640.0,112630.0,0.23082258]
[1761708124943,0.002,112640.0,112630.0,0.77911717]
[1761708125186,0.002,112640.0,112630.0,0.80578067]
[1761708125400,0.0002,112660.0,112650.0,0.17754105]
[1761708125615,0.0002,112660.0,112650.0,0.20581105]
[1761708125616,0.00034576,112660.0,112650.0,0.20581105]
[1761708125819,0.00034576,112660.0,112650.0,0.23079105]
[1761708126475,0.17787105,112660.0,112650.0,0.23079105]
[1761708126690,0.18618575,112660.0,112650.0,0.23079105]
[1761708126909,0.18682645,112660.0,112650.0,0.23079105]
[1761708127119,0.18682645,112660.0,112650.0,0.23179105]
[1761708127331,0.1868242,112660.0,112650.0,0.23179105]
[1761708128834,0.00929891,112660.0,112650.0,0.23179105]
[1761708129050,0.17851175,112660.0,112650.0,0.23179105]
[1761708129262,0.56648978,112660.0,112650.0,0.01282]
[1761708129480,0.58562703,112660.0,112650.0,0.01282]
[1761708129694,0.58562703,112660.0,112650.0,0.02836]
[1761708130131,0.56648978,112660.0,112650.0,0.02836]
[1761708131005,0.58562394,112660.0,112650.0,0.02836]
[1761708131876,0.59037394,112660.0,112650.0,0.001]
[1761708132963,0.17754105,112650.0,112640.0,0.18917357]
[1761708133175,0.56076908,112650.0,112640.0,0.18917357]
[1761708133393,0.56076908,112650.0,112640.0,0.22823357]
[1761708133833,0.56551908,112650.0,112640.0,0.22823357]
[1761708134057,0.56551908,112650.0,112640.0,0.22923357]
[1761708134710,0.1906035,112650.0,112640.0,0.20571681]
[1761708134913,0.56551908,112650.0,112640.0,0.20571681]
[1761708136592,0.56551908,112650.0,112640.0,0.22923681]
[1761708137655,0.56551908,112650.0,112640.0,0.02816]
[1761708138312,0.56551908,112650.0,112640.0,0.001]
[1761708138520,0.56594625,112650.0,112640.0,0.001]
[1761708139057,0.56594625,112650.0,112640.0,0.19409681]
[1761708139261,0.5850767,112650.0,112640.0,0.01654]
[1761708140092,0.5850767,112650.0,112640.0,0.001]
[1761708141016,0.5850767,112650.0,112640.0,0.19409681]
[1761708141440,0.5850767,112650.0,112640.0,0.01654]
[1761708142065,0.5850767,112650.0,112640.0,0.02816]
[1761708142358,0.5850767,112650.0,112640.0,0.20571681]
[1761708143686,0.5850767,112650.0,112640.0,0.02816]
[1761708146490,0.5850767,112650.0,112640.0,0.20571681]
[1761708147099,0.5850767,112650.0,112640.0,0.02816]
[1761708147520,0.5850767,112650.0,112640.0,0.01262]
[1761708147739,0.58509756,112650.0,112640.0,0.02816]
[1761708148406,0.58509756,112650.0,112640.0,0.01262]
[1761708148585,0.58984756,112650.0,112640.0,0.001]
[1761708148814,0.58509756,112650.0,112640.0,0.001]
[1761708149036,0.58509756,112650.0,112640.0,0.01654]
[1761708149244,0.58509756,112650.0,112640.0,0.02816]
[1761708149493,0.20543198,112650.0,112640.0,0.22923681]
[1761708149922,0.00873962,112650.0,112640.0,0.27109957]
[1761708150342,0.00042717,112650.0,112640.0,0.27109957]
[1761708151619,0.00042717,112650.0,112640.0,0.22923681]
[1761708157380,0.00042717,112650.0,112640.0,0.60397325]
[1761708157584,0.00042717,112650.0,112640.0,0.22923681]
[1761708157793,0.00042717,112650.0,112640.0,0.60397325]
[1761708159420,0.00042717,112650.0,112640.0,0.77731226]
[1761708159620,0.00042717,112650.0,112640.0,1.24186771]
[1761708162100,0.00042717,112650.0,112640.0,0.86713127]
[1761708163533,0.00042717,112650.0,112640.0,0.77731226]
[1761708168924,0.00042717,112650.0,112640.0,0.22501901]
[1761708169141,0.00042717,112650.0,112640.0,0.31905582]
[1761708169142,0.55270466,112650.0,112640.0,0.31905582]
[1761708170001,0.17796822,112650.0,112640.0,0.31905582]
[1761708170218,0.55270466,112650.0,112640.0,0.31905582]
[1761708170428,0.00042717,112650.0,112640.0,0.31905582]
[1761708174761,0.17796822,112650.0,112640.0,0.31905582]
[1761708174905,0.56576866,112650.0,112640.0,0.20571681]
[1761708175112,0.58492399,112650.0,112640.0,0.17855681]
[1761708175555,0.21018755,112650.0,112640.0,0.19367681]
[1761708175759,0.56101866,112650.0,112640.0,0.22837681]
[1761708176097,0.58017399,112650.0,112640.0,0.22837681]
[1761708176918,0.58492399,112650.0,112640.0,0.20583681]
[1761708177911,0.58492522,112650.0,112640.0,0.20583681]
[1761708180787,0.40263417,112650.0,112640.0,0.22837681]
[1761708183823,0.58017522,112650.0,112640.0,0.22837681]
[1761708184034,0.40263417,112650.0,112640.0,0.22837681]
[1761708184413,0.02789773,112650.0,112640.0,0.22837681]
[1761708184616,0.0087424,112650.0,112640.0,0.22837681]
[1761708184802,0.00042717,112650.0,112640.0,0.22837681]
[1761708196637,0.37516361,112650.0,112640.0,0.22837681]
[1761708196837,0.40263417,112650.0,112640.0,0.22837681]
[1761708202002,0.58492522,112650.0,112640.0,0.20583681]
[1761708202194,0.02789773,112650.0,112640.0,0.20621681]
[1761708202415,0.40263417,112650.0,112640.0,0.23111681]
[1761708202819,0.02789773,112650.0,112640.0,0.23111681]
[1761708202970,0.40263417,112650.0,112640.0,0.23111681]
[1761708204743,0.02789773,112650.0,112640.0,0.23111681]
[1761708206930,0.58492522,112650.0,112640.0,0.23111681]
[1761708207137,0.58492522,112650.0,112640.0,0.20621681]
[1761708207977,0.58492522,112650.0,112640.0,0.23111681]
[1761708211205,0.55702749,112650.0,112640.0,0.23111681]
[1761708211617,0.55702749,112650.0,112640.0,0.05356]
[1761708212059,0.55702749,112650.0,112640.0,0.23111681]
[1761708212673,0.57654719,112660.0,112640.0,0.23111681]
[1761708212861,0.92129719,112660.0,112650.0,0.01565]
[1761708213486,0.92129719,112660.0,112650.0,0.02766]
[1761708213892,0.91676074,112660.0,112650.0,0.02766]
[1761708214092,0.91676074,112660.0,112650.0,0.05256]
[1761708214254,0.91876074,112660.0,112650.0,0.05256]
[1761708214920,0.92351074,112660.0,112650.0,0.05256]
[1761708216389,0.92351074,112660.0,112650.0,0.02766]
[1761708218614,0.92336982,112660.0,112650.0,0.02766]
[1761708219368,0.92344246,112660.0,112650.0,0.02766]
[1761708221205,0.95536616,112660.0,112650.0,0.02766]
[1761708222864,0.95536616,112660.0,112650.0,0.05234]
[1761708223103,0.98286463,112660.0,112650.0,0.05234]
[1761708226032,0.98286463,112660.0,112650.0,0.02766]
[1761708227067,1.07268364,112660.0,112650.0,0.02766]
[1761708227279,0.17754105,112650.0,112640.0,0.21424496]
[1761708227488,0.20503952,112650.0,112640.0,0.21424681]
[1761708227700,0.20503952,112650.0,112640.0,0.23085681]
[1761708228502,0.20503952,112650.0,112640.0,0.23185681]
[1761708230031,0.20503952,112650.0,112600.0,0.03066494]
[1761708230032,0.17760412,112610.0,112600.0,0.03066494]
[1761708230258,1.0069414,112610.0,112600.0,0.004]
[1761708230475,1.04287704,112610.0,112600.0,0.004]
[1761708230930,1.10183719,112610.0,112600.0,0.004]
[1761708231188,1.18035835,112610.0,112600.0,0.004]
[1761708231420,1.53048566,112610.0,112600.0,0.00448605]
[1761708231671,1.58640129,112610.0,112600.0,0.00448605]
[1761708232104,1.60598736,112610.0,112600.0,0.00448605]
[1761708232316,1.55810181,112610.0,112600.0,0.00448605]
[1761708232547,1.55510181,112610.0,112600.0,0.00448605]
[1761708232779,1.55810181,112610.0,112600.0,0.00448605]
[1761708233398,1.58193074,112610.0,112600.0,0.00448605]
[1761708234276,1.55810181,112610.0,112600.0,0.00448605]
[1761708239964,0.78186489,112610.0,112600.0,0.00448605]
[1761708241590,0.83186489,112610.0,112600.0,0.00448605]
[1761708241810,0.77791837,112610.0,112600.0,0.00448605]
[1761708242013,0.42973002,112610.0,112600.0,0.00448605]
[1761708242209,0.74599467,112610.0,112600.0,0.00448605]
[1761708244262,0.74299467,112610.0,112600.0,0.00448605]
[1761708244477,0.80065372,112610.0,112600.0,0.00448605]
[1761708244690,0.89047273,112610.0,112600.0,0.00448605]
[1761708245324,0.88847273,112610.0,112600.0,0.00448605]
[1761708245742,0.89147273,112610.0,112600.0,0.00448605]
[1761708245964,0.88847273,112610.0,112600.0,0.00448605]
[1761708246809,0.86473738,112610.0,112600.0,0.00448605]
[1761708247423,0.86773738,112610.0,112600.0,0.00448605]
[1761708248378,0.91562293,112610.0,112600.0,0.00448605]
[1761708251318,0.88369923,112610.0,112600.0,0.00448605]
[1761708253459,0.88361352,112610.0,112600.0,0.00448605]
[1761708253881,0.79379451,112610.0,112600.0,0.00448605]
[1761708255229,0.17765144,112580.0,112570.0,0.22643004]
[1761708255464,0.20246163,112580.0,112570.0,0.2265164]
[1761708255673,0.20246163,112580.0,112570.0,0.2426164]
[1761708256534,0.20246163,112580.0,112570.0,0.2436164]
[1761708257206,0.22163727,112580.0,112570.0,0.2436164]
[1761708258043,0.21332744,112580.0,112570.0,0.2436164]
[1761708258255,0.27707755,112580.0,112570.0,0.2436164]
[1761708259279,0.30085447,112580.0,112570.0,0.2436164]
[1761708260388,0.26915191,112580.0,112570.0,0.2436164]
[1761708261230,0.22159807,112580.0,112570.0,0.2436164]
[1761708261437,0.27123183,112580.0,112570.0,0.2436164]
[1761708261853,0.22338373,112580.0,112570.0,0.2436164]
[1761708264507,0.04573229,112580.0,112570.0,0.2436164]
[1761708264728,0.04573229,112580.0,112570.0,0.2879984]
[1761708265694,0.06965725,112580.0,112570.0,0.2879984]
[1761708267584,0.06965725,112580.0,112570.0,0.2436164]
[1761708267785,0.03775852,112580.0,112570.0,0.2436164]
[1761708268000,0.03775852,112580.0,112570.0,0.33343541]
[1761708268201,0.03775852,112580.0,112570.0,0.70878932]
[1761708268774,0.01383356,112580.0,112570.0,0.70878932]
[1761708269076,0.01383356,112580.0,112570.0,0.88236833]
[1761708274716,0.01383356,112580.0,112570.0,0.50701442]
[1761708275123,0.01383356,112580.0,112570.0,0.88236833]
[1761708276380,0.00827063,112580.0,112570.0,0.88236833]
[1761708277421,0.25256205,112600.0,112590.0,0.17763566]
[1761708277705,0.26085797,112600.0,112590.0,0.20596566]
[1761708277996,0.26085797,112600.0,112590.0,0.23003566]
[1761708278410,0.22895924,112600.0,112590.0,0.23003566]
[1761708279611,0.05133618,112600.0,112590.0,0.23003566]
[1761708280176,0.05433618,112600.0,112590.0,0.23003566]
[1761708280800,0.05133618,112600.0,112590.0,0.23003566]
[1761708281176,0.05233618,112600.0,112590.0,0.23003566]
[1761708282968,0.22995607,112600.0,112590.0,0.23003566]
[1761708283263,0.20603111,112600.0,112590.0,0.23003566]
[1761708283700,0.20603111,112600.0,112590.0,0.23169101]
[1761708284017,0.02841122,112600.0,112590.0,0.23169101]
[1761708285204,0.00929592,112600.0,112590.0,0.23169101]
[1761708285611,0.001,112600.0,112590.0,0.23169101]
[1761708289904,0.001,112600.0,112590.0,0.31135987]
[1761708290511,0.001,112600.0,112590.0,0.23169101]
[1761708292082,0.54262831,112610.0,112600.0,0.22917989]
[1761708292489,0.54262831,112610.0,112600.0,0.23062144]
[1761708293385,0.56655327,112610.0,112600.0,0.23062144]
[1761708294324,0.56855327,112610.0,112600.0,0.23062144]
[1761708294550,0.56855327,112610.0,112600.0,0.27267015]
[1761708294752,0.56855327,112610.0,112600.0,0.23062144]
[1761708296846,0.56858555,112610.0,112600.0,0.23062144]
[1761708300311,0.56858555,112610.0,112600.0,0.05300155]
[1761708300795,0.60886428,112610.0,112600.0,0.02893155]
[1761708304253,0.60886428,112610.0,112600.0,0.20655144]
[1761708306118,0.60886428,112610.0,112600.0,0.02893155]
[1761708306662,0.61724428,112610.0,112600.0,0.00144155]
[1761708307633,0.67847246,112610.0,112600.0,0.00144155]
[1761708308510,0.65779434,112610.0,112600.0,0.00144155]
[1761708310797,0.74761335,112610.0,112600.0,0.00144155]
[1761708311220,0.71571462,112610.0,112600.0,0.00144155]
[1761708311432,0.74239393,112610.0,112600.0,0.00144155]
[1761708313570,0.7584576,112610.0,112600.0,0.00144155]
[1761708313805,0.84827661,112610.0,112600.0,0.00144155]
[1761708314337,0.78436484,112610.0,112600.0,0.00144155]
[1761708317180,0.8321745,112610.0,112600.0,0.00144155]
[1761708317480,0.74235549,112610.0,112600.0,0.00144155]
[1761708318331,0.77422979,112610.0,112600.0,0.00144155]
[1761708322503,0.41271013,112610.0,112600.0,0.00144155]
[1761708325874,0.38083583,112610.0,112600.0,0.00144155]
[1761708326508,0.72083583,112610.0,112600.0,0.00144155]
[1761708327128,0.59595751,112610.0,112600.0,0.02841155]
[1761708327328,0.20704396,112610.0,112600.0,0.25557619]
[1761708327499,0.18790061,112610.0,112600.0,0.25557619]
[1761708328349,0.18790061,112610.0,112600.0,0.22964144]
[1761708328499,0.52790061,112610.0,112600.0,0.22964144]
[1761708328700,0.54704396,112610.0,112600.0,0.22964144]
[1761708329767,0.54504396,112610.0,112600.0,0.05202155]
[1761708330173,0.54604396,112610.0,112600.0,0.05202155]
[1761708330747,0.55442396,112610.0,112600.0,0.05202155]
[1761708331170,0.55442396,112610.0,112600.0,0.02841155]
[1761708333383,0.55442396,112610.0,112600.0,0.20603144]
[1761708334154,0.55442396,112610.0,112600.0,0.02841155]
[1761708335107,0.55442833,112610.0,112600.0,0.02841155]
[1761708339522,0.56280833,112610.0,112600.0,0.00144155]
[1761708339730,0.66721736,112610.0,112600.0,0.00144155]
[1761708339941,0.69909166,112610.0,112600.0,0.00144155]
[1761708341103,0.78160416,112610.0,112600.0,0.00144155]
[1761708341318,0.85609456,112610.0,112600.0,0.00144155]
[1761708344222,0.77558793,112610.0,112600.0,0.00144155]
[1761708344566,0.72777827,112610.0,112600.0,0.00144155]
[1761708348947,0.77558793,112610.0,112600.0,0.00144155]
[1761708355676,0.56748496,112610.0,112600.0,0.00144155]
[1761708355883,0.74508965,112610.0,112600.0,0.00144155]
[1761708359408,0.83490866,112610.0,112600.0,0.00144155]
[1761708359591,0.84717647,112610.0,112600.0,0.00144155]
[1761708359794,0.86311183,112610.0,112600.0,0.00144155]
[1761708360435,0.86211183,112610.0,112600.0,0.00144155]
[1761708360880,0.86311183,112610.0,112600.0,0.00144155]
[1761708361202,0.86212497,112610.0,112600.0,0.00144155]
[1761708361544,0.86312497,112610.0,112600.0,0.00144155]
[1761708361744,0.86312497,112610.0,112570.0,0.00408636]
[1761708361745,0.51765144,112580.0,112570.0,0.00408636]
[1761708361975,0.70069003,112580.0,112570.0,0.00408636]
[1761708362188,0.8010482,112580.0,112570.0,0.00408636]
[1761708362395,0.76916484,112580.0,112570.0,0.0047277]
[1761708362558,0.7732512,112580.0,112570.0,0.0047277]
[1761708362752,0.86307021,112580.0,112570.0,0.0047277]
[1761708362967,0.86063651,112580.0,112570.0,1e-08]
[1761708363208,0.86263651,112580.0,112570.0,1e-08]
[1761708363409,0.91035319,112580.0,112570.0,1e-08]
[1761708363631,0.83624514,112580.0,112570.0,1e-08]
[1761708363795,0.9072104,112580.0,112570.0,1e-08]
[1761708364004,0.95492801,112580.0,112570.0,1e-08]
[1761708364236,0.95092801,112580.0,112570.0,1e-08]
[1761708364650,0.95392801,112580.0,112570.0,1e-08]
[1761708365009,0.5176988,112550.0,112540.0,0.004]
[1761708365220,0.65623368,112550.0,112540.0,0.0040486]
[1761708365420,0.64342116,112550.0,112540.0,0.0040486]
[1761708365649,0.64342116,112550.0,112540.0,0.0046902]
[1761708365996,0.67011581,112550.0,112540.0,0.0046902]
[1761708368348,0.67838189,112550.0,112540.0,0.0046902]
[1761708370015,0.66242189,112550.0,112540.0,0.0046902]
[1761708370219,0.72537966,112550.0,112540.0,0.0046902]
[1761708370469,0.66242189,112550.0,112540.0,0.0046902]
[1761708372037,0.63572724,112550.0,112540.0,0.0046902]
[1761708374902,0.53752823,112550.0,112540.0,0.0203402]
[1761708376085,0.53752823,112550.0,112540.0,0.0066902]
[1761708376918,0.19752823,112550.0,112540.0,0.0066902]
[1761708377120,0.17838488,112550.0,112540.0,0.0223402]
[1761708377314,0.17838488,112550.0,112540.0,0.21167479]
[1761708377515,0.17838488,112550.0,112540.0,0.0339602]
[1761708381962,0.18676488,112550.0,112540.0,0.0066902]
[1761708385400,0.21056169,112550.0,112540.0,0.0066902]
[1761708386045,0.18676488,112550.0,112540.0,0.0066902]
[1761708386306,0.22959914,112550.0,112540.0,0.0066902]
[1761708386772,0.22961506,112550.0,112540.0,0.0066902]
[1761708387556,0.22123506,112550.0,112540.0,0.0066902]
[1761708388179,0.22961506,112550.0,112540.0,0.0066902]
[1761708388413,0.2614045,112550.0,112540.0,0.0066902]
[1761708389248,0.23760769,112550.0,112540.0,0.0066902]
[1761708389678,0.22922769,112550.0,112540.0,0.0066902]
[1761708390107,0.27480912,112550.0,112540.0,0.0066902]
[1761708390738,0.29871633,112550.0,112540.0,0.0066902]
[1761708391336,0.31533357,112550.0,112540.0,0.0066902]
[1761708391565,0.33914397,112550.0,112540.0,0.0066902]
[1761708392112,0.30194254,112550.0,112540.0,0.0066902]
[1761708394479,0.25422493,112550.0,112540.0,0.0066902]
[1761708394689,0.30194254,112550.0,112540.0,0.0066902]
[1761708395258,0.25432718,112550.0,112540.0,0.0066902]
[1761708395939,0.25406748,112550.0,112540.0,0.0066902]
[1761708396471,0.63737877,112550.0,112540.0,0.0066902]
[1761708396704,0.61345419,112550.0,112540.0,0.0066902]
[1761708397651,0.5701429,112550.0,112540.0,0.0066902]
[1761708398284,0.59406805,112550.0,112540.0,0.0066902]
[1761708405882,0.61786051,112550.0,112540.0,0.0066902]
[1761708408060,0.61786051,112550.0,112540.0,0.0046902]
[1761708410935,0.60948051,112550.0,112540.0,0.0335202]
[1761708411312,0.5617629,112550.0,112540.0,0.0335202]
[1761708414339,0.56907115,112550.0,112540.0,0.0171002]
[1761708414943,0.56907115,112550.0,112540.0,0.0046902]
[1761708418012,0.56907115,112550.0,112540.0,0.0211102]
[1761708423437,0.56907115,112550.0,112540.0,0.0046902]
[1761708424435,0.64851967,112550.0,112540.0,0.0046902]
[1761708424928,0.56907115,112550.0,112540.0,0.0046902]
[1761708425339,0.56176747,112550.0,112540.0,0.0046902]
[1761708426049,0.59368157,112550.0,112540.0,0.0046902]
[1761708428101,0.60166015,112550.0,112540.0,0.0046902]
[1761708432592,0.57454187,112550.0,112540.0,0.0046902]
[1761708432834,0.59848102,112550.0,112540.0,0.0046902]
[1761708434347,0.57454187,112550.0,112540.0,0.0046902]
[1761708435334,0.65453746,112550.0,112540.0,0.0046902]
[1761708436452,0.74435647,112550.0,112540.0,0.0046902]
[1761708437678,0.74535647,112550.0,112540.0,0.0046902]
[1761708437873,0.79207408,112550.0,112540.0,0.0046902]
[1761708438431,0.79307408,112550.0,112540.0,0.0046902]
[1761708440036,0.81222477,112550.0,112540.0,0.0046902]
[1761708440468,0.87779659,112550.0,112540.0,0.0046902]
[1761708441313,0.87780121,112550.0,112540.0,0.0046902]
[1761708442435,0.79780562,112550.0,112540.0,0.0046902]
[1761708444834,0.75008801,112550.0,112540.0,0.0046902]
[1761708445975,0.59469718,112550.0,112540.0,0.0210702]
[1761708446194,0.57009981,112550.0,112540.0,0.0572402]
[1761708446449,0.59370213,112550.0,112540.0,0.0327602]
[1761708446712,0.60201325,112550.0,112540.0,0.0163802]
[1761708446918,0.23009915,112550.0,112540.0,0.0046902]
[1761708448849,0.23895926,112550.0,112540.0,0.0046902]
[1761708452552,0.23895926,112550.0,112540.0,0.0210702]
[1761708452788,0.23895926,112550.0,112540.0,0.0163802]
[1761708452999,0.23895926,112550.0,112540.0,0.0046902]
[1761708453472,0.57895926,112550.0,112540.0,0.0046902]
[1761708453691,0.57795926,112550.0,112540.0,0.0046902]
[1761708455237,0.65671624,112550.0,112540.0,0.0046902]
[1761708456978,0.68863034,112550.0,112540.0,0.0046902]
[1761708458022,0.60987336,112550.0,112540.0,0.0046902]
[1761708458224,0.69969237,112550.0,112540.0,0.0046902]
[1761708458426,0.74009398,112550.0,112540.0,0.0046902]
[1761708460300,0.80783087,112550.0,112540.0,0.0046902]
[1761708463224,0.80883087,112550.0,112540.0,0.0046902]
[1761708463455,0.89864988,112550.0,112540.0,0.0046902]
[1761708476227,0.80883087,112550.0,112540.0,0.0046902]
[1761708481738,0.83552637,112550.0,112540.0,0.0046902]
[1761708484339,0.80361227,112550.0,112540.0,0.0046902]
[1761708484542,0.75589466,112550.0,112540.0,0.0046902]
[1761708484751,0.80375847,112550.0,112540.0,0.0046902]
[1761708484929,0.89357748,112550.0,112540.0,0.0046902]
[1761708488213,0.87761748,112550.0,112540.0,0.0046902]
[1761708488850,0.78779847,112550.0,112540.0,0.0046902]
[1761708489490,0.51771459,112540.0,112530.0,0.0004]
[1761708489765,0.92144954,112540.0,112530.0,0.00044852]
[1761708489999,0.51773038,112530.0,112520.0,0.0004]
[1761708490234,0.72230206,112530.0,112520.0,0.00044858]
[1761708490854,0.76415864,112530.0,112520.0,0.00044858]
[1761708491314,0.81192176,112530.0,112520.0,0.00044858]
[1761708491524,0.81292176,112530.0,112520.0,0.00044858]
[1761708493395,0.81492176,112530.0,112520.0,0.00044858]
[1761708494018,0.17776197,112510.0,112500.0,0.0004]
[1761708494232,0.17776197,112510.0,112500.0,0.00044853]
[1761708494233,0.75111499,112510.0,112500.0,0.00044853]
[1761708494459,0.74316606,112510.0,112500.0,0.00044853]
[1761708494881,0.75514606,112510.0,112500.0,0.00044853]
[1761708495339,0.78691488,112510.0,112500.0,0.00044853]
[1761708495752,0.78691488,112510.0,112500.0,0.00130442]
[1761708496967,0.78686954,112510.0,112500.0,0.00130442]
[1761708497811,0.85226474,112510.0,112500.0,0.00130442]
[1761708499815,0.88844702,112510.0,112500.0,0.00130442]
[1761708500207,0.90747044,112510.0,112500.0,0.00130442]
[1761708501054,0.65708037,112510.0,112500.0,0.00130442]
[1761708501252,0.83484234,112510.0,112500.0,0.00130442]
[1761708503119,0.79866006,112510.0,112500.0,0.00130442]
[1761708503325,0.83484234,112510.0,112500.0,0.00130442]
[1761708503537,0.83584234,112510.0,112500.0,0.00130442]
[1761708504197,0.83684234,112510.0,112500.0,0.00130442]
[1761708504635,0.83584234,112510.0,112500.0,0.00130442]
[1761708505984,0.83684234,112510.0,112500.0,0.00130442]
[1761708508092,0.20705117,112510.0,112500.0,0.02930442]